bitfinex-derivatives/quotes_ETHF0:USTF0_20240915
["timestamp","ask_amount","ask_price","bid_price","bid_amount"]
[1726416480402,2.3116,2406.8,2406.7,7.70066521]
[1726416482406,1.917,2406.8,2406.7,8.10626521]
[1726416483205,1.917,2406.8,2406.7,7.70066521]
[1726416483803,1.917,2406.8,2406.7,7.70063717]
[1726416487511,1.917,2406.8,2406.7,4.98045709]
[1726416488614,1.917,2406.8,2406.7,4.98059974]
[1726416488816,1.917,2406.8,2406.7,7.70077982]
[1726416489218,1.917,2406.8,2406.7,8.09697982]
[1726416490321,1.917,2406.8,2406.7,8.47457982]
[1726416491807,1.29356953,2406.8,2406.7,8.47457982]
[1726416492320,0.097,2407.3,2406.7,14.12977982]
[1726416492523,0.83061,2407.2,2407.0,2.1809949]
[1726416492819,0.83061,2407.2,2407.1,3.84119481]
[1726416493022,5.39491,2407.2,2407.1,1.66019991]
[1726416493220,5.39491,2407.2,2407.1,3.29310496]
[1726416493619,4.9796,2407.2,2407.1,3.29310496]
[1726416493811,6.4796,2407.2,2407.1,3.29310496]
[1726416494324,6.0697,2407.2,2407.1,1.6575191]
[1726416494513,6.0697,2407.2,2407.1,3.838514]
[1726416495216,6.0697,2407.2,2407.1,1.6575191]
[1726416495910,1.9153,2407.2,2407.1,3.838514]
[1726416496107,1.9153,2407.2,2407.1,1.6575191]
[1726416496523,6.48501,2407.2,2407.1,1.6575191]
[1726416496720,6.48501,2407.2,2407.1,3.29254552]
[1726416496922,6.0697,2407.2,2407.1,3.29254552]
[1726416497218,6.0697,2407.2,2407.1,3.29255125]
[1726416497614,6.48501,2407.2,2407.1,3.29238981]
[1726416497923,6.48501,2407.2,2407.1,3.29152679]
[1726416499617,12.48501,2407.2,2407.1,3.29152679]
[1726416499822,12.48501,2407.2,2407.1,1.08986067]
[1726416501216,6.48501,2407.2,2407.1,1.08986067]
[1726416504323,0.41533,2407.1,2406.8,0.7861]
[1726416504525,1.5,2406.9,2406.8,0.7861]
[1726416506929,1.5,2407.1,2406.8,1.20147]
[1726416509929,1.5,2407.1,2407.0,2.17912279]
[1726416514932,1.5,2407.1,2406.9,2.17912279]
[1726416515130,0.83062,2407.2,2407.0,1.65590096]
[1726416515429,0.83062,2407.2,2407.1,3.29002276]
[1726416517430,6.48502,2407.2,2407.1,2.74532898]
[1726416517631,10.07082,2407.2,2407.1,1.08942802]
[1726416517824,1.03833,2407.1,2406.8,2.17912279]
[1726416518128,0.4154,2406.7,2406.6,2.17912279]
[1726416518435,1.9154,2406.7,2406.6,1.64464574]
[1726416518937,6.0706,2406.7,2406.6,1.64464574]
[1726416519124,0.41543,2406.6,2406.4,0.4132]
[1726416519329,1.5,2406.5,2406.2,5.38692279]
[1726416519635,0.82575,2406.4,2406.3,1.64416656]
[1726416520033,0.4103,2406.4,2406.3,1.64416656]
[1726416521031,1.9103,2406.4,2406.3,1.64416656]
[1726416521335,2.32575,2406.4,2406.3,1.64416656]
[1726416521535,2.32575,2406.4,2406.2,3.6023]
[1726416521734,1.9103,2406.4,2406.2,3.6023]
[1726416521935,1.9103,2406.4,2406.3,1.64327032]
[1726416522235,1.9103,2406.4,2406.2,0.3945]
[1726416523839,1.5,2406.4,2406.2,0.3945]
[1726416524730,1.5,2406.4,2406.3,1.64226781]
[1726416527226,1.5,2406.4,2406.2,0.3945]
[1726416528338,1.9085,2406.4,2406.2,0.3945]
[1726416529836,2.3111,2406.4,2406.2,0.3945]
[1726416532330,1.5,2406.3,2406.2,0.80998]
[1726416532530,1.5,2406.5,2406.2,2.45081477]
[1726416532735,1.5,2406.3,2406.2,0.3945]
[1726416532938,1.5,2406.3,2406.2,2.0353393]
[1726416533627,1.5,2406.3,2406.2,0.3945]
[1726416541134,1.5,2406.3,2405.9,3.62332]
[1726416541340,1.5,2406.0,2405.9,3.6232]
[1726416541544,1.5,2406.0,2405.9,5.26353563]
[1726416541741,1.5,2406.0,2405.9,9.41953563]
[1726416543941,1.5,2406.0,2405.9,5.26353563]
[1726416544745,1.5,2406.0,2405.9,3.6232]
[1726416545347,1.5,2406.0,2405.9,3.2078]
[1726416546146,1.8926,2406.0,2405.9,3.2078]
[1726416546650,6.0486,2406.0,2405.9,3.2078]
[1726416546847,1.8926,2406.0,2405.9,3.2078]
[1726416547038,6.0486,2406.0,2405.9,3.2078]
[1726416547242,2.30812,2406.0,2405.9,3.2078]
[1726416547551,6.46412,2406.0,2405.9,3.2078]
[1726416547739,2.30812,2406.0,2405.9,3.2078]
[1726416547938,2.30812,2406.0,2405.8,0.3976]
[1726416549657,1.8926,2406.0,2405.8,0.3976]
[1726416550444,2.30812,2406.0,2405.8,0.3976]
[1726416550642,1.8926,2406.0,2405.8,0.3976]
[1726416551354,2.30812,2406.0,2405.8,0.3976]
[1726416553048,0.3926,2406.0,2405.8,4.5544]
[1726416553246,1.8926,2406.0,2405.8,4.5544]
[1726416553553,1.8926,2406.0,2405.9,0.4112]
[1726416556458,1.8926,2406.0,2405.8,0.3976]
[1726416556657,1.5,2405.9,2405.8,0.3976]
[1726416556858,0.3926,2406.0,2405.8,0.3976]
[1726416557048,1.5,2405.9,2405.8,0.3976]
[1726416560453,1.5,2405.9,2405.6,3.5843]
[1726416560659,1.5,2405.7,2405.6,3.5843]
[1726416560956,1.5,2405.7,2405.6,5.22294018]
[1726416562050,1.5,2405.7,2405.6,2.01514018]
[1726416563354,1.5,2405.7,2405.6,4.19426297]
[1726416563956,1.5,2405.7,2405.6,2.01514018]
[1726416564151,1.5,2405.7,2405.6,4.19426297]
[1726416564760,1.5,2405.7,2405.6,2.01514018]
[1726416565159,1.91557,2405.7,2405.6,1.63864018]
[1726416565453,1.91557,2405.7,2405.5,5.38692279]
[1726416565454,1.91557,2405.7,2405.4,2.17912279]
[1726416565666,0.41557,2405.7,2405.5,1.66075565]
[1726416565849,0.41557,2405.7,2405.6,1.66075565]
[1726416566761,0.41557,2405.7,2405.4,2.17912279]
[1726416567062,0.3988,2405.6,2405.5,1.66056705]
[1726416567261,0.3988,2405.6,2405.5,2.05916705]
[1726416567951,0.3988,2405.6,2405.5,1.66056705]
[1726416567952,2.31439,2405.6,2405.5,1.66056705]
[1726416569356,2.31439,2405.6,2405.5,1.66022613]
[1726416569559,1.8988,2405.6,2405.5,1.66022613]
[1726416574159,1.8988,2405.6,2405.5,1.66007024]
[1726416574363,2.31439,2405.6,2405.3,2.57772279]
[1726416574565,1.5,2405.4,2405.3,2.99336279]
[1726416574763,1.5,2405.4,2405.3,4.65347107]
[1726416575771,1.5,2405.4,2405.3,4.23783107]
[1726416577472,1.5,2405.4,2405.3,4.65347107]
[1726416578875,1.5,2405.4,2405.3,7.97340972]
[1726416579665,1.9061,2405.5,2405.3,7.97340972]
[1726416579867,1.9061,2405.5,2405.4,1.66001564]
[1726416580267,1.5,2405.5,2405.4,5.81761564]
[1726416581765,1.5,2405.5,2405.4,7.99673843]
[1726416581965,1.8793,2405.5,2405.4,7.99673843]
[1726416582281,1.8793,2405.5,2405.4,3.83913843]
[1726416584176,1.8793,2405.5,2405.4,7.16152344]
[1726416586681,1.8793,2405.5,2405.4,7.57714344]
[1726416586682,0.3793,2405.5,2405.4,7.57714344]
[1726416586973,1.8793,2405.5,2405.4,7.96774344]
[1726416587181,1.8793,2405.5,2405.4,7.57714344]
[1726416587678,1.8793,2405.5,2405.4,5.39802065]
[1726416587873,1.8793,2405.5,2405.4,5.78862065]
[1726416588369,1.8793,2405.5,2405.4,5.79122646]
[1726416588872,1.8793,2405.5,2405.4,8.51512995]
[1726416590277,1.8793,2405.5,2405.4,5.79122646]
[1726416590474,1.8793,2405.5,2405.4,8.51512995]
[1726416590670,1.8793,2405.5,2405.4,8.12452995]
[1726416591270,1.8793,2405.5,2405.4,7.70890995]
[1726416591568,1.8793,2405.5,2405.4,5.40062646]
[1726416591765,1.8793,2405.5,2405.4,4.98500646]
[1726416592566,1.8793,2405.5,2405.4,5.40062646]
[1726416592774,1.8793,2405.5,2405.4,7.70890995]
[1726416593084,1.8793,2405.5,2405.4,2.72390349]
[1726416593287,1.8793,2405.5,2405.4,7.7112579]
[1726416597897,1.8793,2405.5,2405.4,7.71179749]
[1726416601385,1.8793,2405.5,2405.4,7.71295297]
[1726416603388,2.29491,2405.5,2405.4,7.71295297]
[1726416603587,2.29491,2405.5,2405.4,7.16956927]
[1726416603787,2.29491,2405.5,2405.4,4.98904948]
[1726416603788,1.8793,2405.5,2405.4,4.98904948]
[1726416604684,2.29491,2405.5,2405.4,4.98904948]
[1726416605478,2.29491,2405.5,2405.4,7.71295297]
[1726416606181,2.29491,2405.5,2405.4,7.71611134]
[1726416606482,2.29491,2405.5,2405.4,4.99220785]
[1726416610694,1.8793,2405.5,2405.4,4.99347277]
[1726416611493,1.8793,2405.5,2405.4,7.71737626]
[1726416613291,2.29491,2405.5,2405.4,4.99347277]
[1726416613594,2.29491,2405.5,2405.4,7.71737626]
[1726416614294,2.29491,2405.5,2405.4,4.99347277]
[1726416615394,1.8793,2405.5,2405.4,4.99347277]
[1726416615591,1.8793,2405.5,2405.4,4.99294252]
[1726416615790,1.8793,2405.5,2405.4,4.99293274]
[1726416616100,6.45251,2405.5,2405.4,3.30073917]
[1726416618196,6.45251,2405.5,2405.4,1.66431091]
[1726416618397,0.41562,2405.4,2405.3,1.63642826]
[1726416618598,0.41562,2405.4,2405.3,1.6636899]
[1726416618895,0.41562,2405.4,2405.2,1.63642826]
[1726416618896,0.41564,2405.3,2405.2,1.63642826]
[1726416619208,6.07324,2405.3,2405.2,3.30013692]
[1726416619404,6.07324,2405.3,2405.2,1.66370866]
[1726416620300,0.41566,2405.2,2405.1,1.63642826]
[1726416620501,1.19536,2405.2,2405.1,3.2993807]
[1726416621197,1.19536,2405.2,2405.1,3.29934811]
[1726416621586,1.58246,2405.2,2405.1,3.29934811]
[1726416622392,1.58246,2405.2,2405.1,1.66291985]
[1726416622793,5.74006,2405.2,2405.1,1.66291985]
[1726416623302,5.74006,2405.2,2405.0,1.63642826]
[1726416623504,1.58246,2405.2,2405.1,1.66203648]
[1726416623803,0.41567,2405.1,2405.0,1.63642826]
[1726416624004,0.41567,2405.1,2405.0,3.29843263]
[1726416624499,0.41567,2405.1,2405.0,1.66200437]
[1726416624693,0.41567,2405.1,2405.0,3.29843263]
[1726416624890,0.41567,2405.1,2405.0,1.66200437]
[1726416625092,0.41567,2405.1,2404.9,1.63642826]
[1726416625289,0.41567,2405.1,2405.0,1.6617284]
[1726416625494,0.41567,2405.1,2405.0,1.66150896]
[1726416626094,0.41567,2405.1,2405.0,3.29793722]
[1726416626711,1.91567,2405.1,2405.0,3.29793722]
[1726416627297,1.5,2405.1,2405.0,1.66150896]
[1726416628100,1.91567,2405.1,2405.0,1.66150896]
[1726416630204,1.91567,2405.1,2405.0,1.66088965]
[1726416632707,1.91567,2405.1,2404.9,1.63642826]
[1726416633102,1.91567,2405.1,2405.0,1.66065856]
[1726416634007,1.91567,2405.1,2404.9,1.63642826]
[1726416636708,1.91567,2405.1,2405.0,0.01309557]
[1726416637807,6.07327,2405.1,2405.0,0.01309557]
[1726416638109,0.41573,2404.8,2404.7,1.08853041]
[1726416638415,0.41574,2404.7,2404.6,4.29633041]
[1726416638607,2.30124,2404.7,2404.6,4.29633041]
[1726416640008,6.45964,2404.7,2404.5,1.49383041]
[1726416640318,0.41576,2404.6,2404.5,1.49383041]
[1726416640509,0.41576,2404.6,2404.5,0.4053]
[1726416640809,0.41578,2404.5,2404.4,1.08853041]
[1726416641111,1.9017,2404.5,2404.2,1.46663041]
[1726416641317,1.91581,2404.3,2404.2,1.46663041]
[1726416641611,1.5,2404.3,2404.2,1.46663041]
[1726416641812,0.4017,2404.5,2404.2,1.46663041]
[1726416642007,0.4017,2404.5,2404.3,1.08853041]
[1726416642213,0.4017,2404.5,2404.2,5.22232826]
[1726416642214,1.5,2404.4,2404.2,5.09026041]
[1726416642418,1.5,2404.4,2404.2,4.67443041]
[1726416647713,1.5,2404.4,2404.2,5.09025041]
[1726416650114,1.5,2404.4,2404.2,4.67443041]
[1726416650814,1.5,2404.4,2404.2,3.5859]
[1726416651011,1.5,2404.4,2404.2,4.67443041]
[1726416653716,1.5,2404.4,2404.2,3.5859]
[1726416653917,1.5,2404.4,2404.2,1.08853041]
[1726416654118,1.19682,2404.3,2404.1,1.08853041]
[1726416654313,0.41585,2404.1,2403.9,4.67883041]
[1726416654518,1.8889,2404.0,2403.9,4.67883041]
[1726416654816,1.8889,2404.0,2403.9,3.5903]
[1726416655021,1.8889,2404.0,2403.9,4.67883041]
[1726416655221,1.8889,2404.0,2403.9,3.5903]
[1726416656712,1.5,2404.0,2403.9,3.5903]
[1726416656919,1.5,2404.0,2403.9,5.09471041]
[1726416657511,1.5,2404.0,2403.9,4.67883041]
[1726416659021,1.5,2404.1,2404.0,0.41586]
[1726416659216,1.5,2404.1,2404.0,1.50247176]
[1726416659524,1.5,2404.1,2404.0,5.66247176]
[1726416661029,1.5,2404.1,2404.0,1.50247176]
[1726416661215,1.5,2404.1,2404.0,1.08661176]
[1726416661619,1.5,2404.1,2403.9,5.22672826]
[1726416661620,0.41586,2404.0,2403.9,2.72304002]
[1726416661821,0.41586,2404.0,2403.7,2.18173387]
[1726416661822,1.9079,2404.0,2403.8,1.08661176]
[1726416662029,1.9082,2403.9,2403.8,1.08661176]
[1726416662416,1.9082,2403.9,2403.7,2.43062826]
[1726416662417,1.9082,2403.9,2403.7,1.88081176]
[1726416662612,1.9082,2403.9,2403.8,1.08661176]
[1726416663126,1.9082,2403.9,2403.7,1.49431176]
[1726416663726,1.9082,2403.9,2403.8,1.08661176]
[1726416664418,1.9082,2403.9,2403.7,1.08661176]
[1726416665523,1.9082,2403.9,2403.8,1.08661176]
[1726416666027,1.9082,2403.9,2403.6,4.67961176]
[1726416666224,1.5,2403.7,2403.6,4.29441176]
[1726416666427,1.5,2403.7,2403.6,5.94969349]
[1726416666623,1.5,2403.7,2403.6,4.29441176]
[1726416668120,1.5,2403.7,2403.6,3.2078]
[1726416671426,1.5,2403.7,2403.5,1.49431176]
[1726416671631,0.4085,2403.6,2403.5,1.49431176]
[1726416671834,0.4085,2403.6,2403.5,4.70211176]
[1726416673632,0.4085,2403.6,2403.5,5.10241176]
[1726416675941,0.4085,2403.6,2403.5,4.0158]
[1726416676241,0.4085,2403.6,2403.5,5.10241176]
[1726416678549,1.5,2403.7,2403.5,6.75775779]
[1726416678837,1.5,2403.7,2403.6,0.4079]
[1726416679638,4.24722,2404.6,2403.8,0.41589]
[1726416679842,4.24722,2404.6,2404.0,3.2078]
[1726416679843,0.41584,2404.2,2404.0,3.2078]
[1726416680144,0.41585,2404.1,2404.0,3.2078]
[1726416680745,0.41584,2404.2,2403.8,1.08702437]
[1726416680940,0.4006,2404.0,2403.8,1.08702437]
[1726416681540,1.5,2403.9,2403.8,1.08702437]
[1726416681842,1.5,2403.9,2403.8,2.74350086]
[1726416682038,1.5,2403.9,2403.8,3.68050475]
[1726416682246,1.5,2404.0,2403.8,3.68050475]
[1726416682546,1.5,2404.0,2403.9,1.0879748]
[1726416683137,1.5,2404.0,2403.9,4.86475744]
[1726416683441,1.5,2404.0,2403.9,11.0770657]
[1726416684339,1.5,2404.0,2403.9,9.44063744]
[1726416684543,1.5,2404.0,2403.9,9.02475744]
[1726416684745,1.5,2404.0,2403.9,10.6574588]
[1726416685242,1.5,2404.0,2403.9,9.41638136]
[1726416685544,1.5,2404.0,2403.9,9.44162355]
[1726416685843,1.5,2404.0,2403.9,10.65871439]
[1726416686047,1.5,2404.0,2403.9,6.49871439]
[1726416690139,1.5,2404.0,2403.9,6.49922412]
[1726416692553,1.91586,2404.0,2403.9,6.49922412]
[1726416692848,1.5,2404.0,2403.9,6.49922412]
[1726416693255,1.8938,2404.0,2403.9,6.49922412]
[1726416693558,2.30966,2404.0,2403.9,3.29142412]
[1726416694750,1.8938,2404.0,2403.9,3.29142412]
[1726416695056,2.30966,2404.0,2403.9,3.29217859]
[1726416696047,2.30966,2404.0,2403.9,1.65920775]
[1726416696355,2.30966,2404.0,2403.9,3.29217859]
[1726416696653,6.46966,2404.0,2403.9,3.29217859]
[1726416699549,2.30966,2404.0,2403.9,3.29332379]
[1726416702960,2.30966,2404.0,2403.9,1.09039234]
[1726416703151,0.41588,2403.9,2403.7,2.04807084]
[1726416703345,2.29958,2403.9,2403.8,2.75109267]
[1726416703551,12.0437,2403.9,2403.5,2.18173387]
[1726416703746,4.7078,2403.6,2403.1,0.417]
[1726416704049,1.5,2403.2,2403.1,0.417]
[1726416704348,0.875647,2403.2,2403.1,0.417]
[1726416705157,0.875647,2403.2,2402.9,5.93170349]
[1726416705354,1.5,2403.0,2402.9,3.2078]
[1726416705552,1.5,2403.0,2402.9,6.45415241]
[1726416706360,1.5,2403.0,2402.9,6.45315461]
[1726416706562,1.5,2403.0,2402.9,3.2078]
[1726416711354,1.91604,2403.0,2402.9,3.2078]
[1726416711558,0.41607,2402.8,2402.7,1.2248]
[1726416711762,1.5,2402.8,2402.7,1.2248]
[1726416712154,1.8965,2402.8,2402.7,1.2248]
[1726416715160,3.62381,2403.2,2402.7,5.3864]
[1726416715363,3.62381,2403.2,2402.9,3.2078]
[1726416715364,0.41602,2403.2,2402.9,3.2078]
[1726416715660,1.5,2403.0,2402.9,3.2078]
[1726416722567,1.91604,2403.0,2402.9,3.2078]
[1726416722968,1.5,2403.0,2402.9,3.2078]
[1726416723271,1.91604,2403.0,2402.9,3.2078]
[1726416723466,2.32784,2403.0,2402.9,3.2078]
[1726416724864,1.9118,2403.0,2402.9,3.2078]
[1726416725864,1.5,2403.0,2402.9,3.2078]
[1726416726870,1.5,2403.0,2402.7,1.64089]
[1726416727069,1.5,2402.8,2402.7,1.64089]
[1726416727269,0.3784,2403.2,2402.7,5.80249]
[1726416727466,1.5,2402.9,2402.8,3.62387]
[1726416727871,1.5,2402.9,2402.8,7.78547]
[1726416728767,1.5,2402.9,2402.8,7.3694]
[1726416729075,1.91605,2402.9,2402.8,3.2078]
[1726416729668,1.5,2402.9,2402.8,3.2078]
[1726416730070,0.41601,2403.2,2402.9,0.41605]
[1726416730271,1.5,2403.0,2402.9,0.41605]
[1726416730479,1.5,2403.0,2402.8,3.62386]
[1726416730662,1.5,2403.0,2402.9,0.41605]
[1726416730861,1.5,2403.0,2402.8,3.62386]
[1726416731065,0.3784,2403.4,2403.0,0.41603]
[1726416731276,0.764,2403.4,2403.1,0.7878]
[1726416732168,0.764,2403.4,2402.9,0.8147]
[1726416732369,1.5,2403.0,2402.9,0.8147]
[1726416734168,0.79438,2403.4,2403.0,0.41603]
[1726416734374,1.5,2403.1,2402.9,1.23075]
[1726416735375,1.5,2403.1,2402.9,0.8147]
[1726416735576,1.91602,2403.1,2402.9,0.8147]
[1726416735773,0.388,2403.0,2402.9,0.8147]
[1726416737484,1.5,2403.1,2402.9,0.8147]
[1726416737675,1.5,2403.1,2402.9,1.23075]
[1726416737885,1.5,2403.1,2403.0,0.3874]
[1726416738069,1.5,2403.1,2403.0,0.80344]
[1726416739174,1.5,2403.1,2403.0,0.3874]
[1726416747909,1.5,2403.1,2403.0,2.0300151]
[1726416748203,1.5,2403.1,2403.0,2.03105163]
[1726416749808,1.5,2403.1,2403.0,2.03214114]
[1726416752212,1.5,2403.1,2403.0,4.20409685]
[1726416752407,1.5,2403.1,2403.0,2.03214114]
[1726416753002,1.5,2403.1,2403.0,4.20409685]
[1726416753207,1.5,2403.1,2403.0,2.03214114]
[1726416754401,1.5,2403.1,2403.0,4.20409685]
[1726416754603,1.5,2403.1,2403.0,4.20462442]
[1726416754803,1.5,2403.1,2403.0,2.03266871]
[1726416755222,1.5,2403.1,2403.0,4.62066442]
[1726416755512,1.5,2403.1,2403.0,7.91120565]
[1726416755910,1.5,2403.1,2403.0,7.49516565]
[1726416756309,1.5,2403.1,2403.0,7.49522364]
[1726416756514,1.5,2403.1,2403.0,4.20462442]
[1726416757517,1.5,2403.1,2403.0,7.9113124]
[1726416757921,1.5,2403.1,2403.0,7.4952724]
[1726416758106,1.8793,2403.2,2403.0,7.9113124]
[1726416758307,0.9309,2403.6,2403.3,0.41598]
[1726416758509,1.65975,2403.6,2403.4,2.82766871]
[1726416758715,1.65975,2403.6,2403.5,1.64526871]
[1726416759414,1.65975,2403.6,2403.3,2.18315585]
[1726416759615,1.5,2403.5,2403.4,1.64469584]
[1726416760511,1.5,2403.5,2403.4,7.11663267]
[1726416761517,1.5,2403.5,2403.4,3.82785169]
[1726416764524,1.5,2403.5,2403.4,1.64469584]
[1726416765534,0.87572853,2403.5,2403.4,1.64469584]
[1726416766416,0.87572853,2403.5,2403.4,3.27942646]
[1726416767220,0.87572853,2403.5,2403.4,3.69539646]
[1726416767825,0.87572853,2403.5,2403.4,3.27942646]
[1726416768316,0.87572853,2403.5,2403.4,1.64469584]
[1726416768719,0.87572853,2403.5,2403.4,1.63943736]
[1726416769124,0.87572853,2403.5,2403.4,3.69013798]
[1726416769516,0.87572853,2403.5,2403.4,3.27416798]
[1726416771113,0.87572853,2403.5,2403.4,3.69013798]
[1726416771311,0.87572853,2403.5,2403.4,3.27416798]
[1726416771523,0.87572853,2403.5,2403.4,3.69013798]
[1726416771719,0.4146,2403.8,2403.5,0.41595]
[1726416771919,0.4146,2403.8,2403.5,2.45794934]
[1726416771920,1.5,2403.6,2403.5,2.45794934]
[1726416772124,1.5,2403.6,2403.5,4.09692184]
[1726416772626,1.5,2403.6,2403.5,3.55402184]
[1726416773318,1.5,2403.6,2403.5,1.91504934]
[1726416773523,1.5,2403.6,2403.5,3.55378812]
[1726416774426,1.5,2403.6,2403.5,3.96972812]
[1726416778313,1.5,2403.6,2403.5,3.96910817]
[1726416779627,1.5,2403.6,2403.5,2.33520883]
[1726416779923,1.5,2403.6,2403.5,3.96910817]
[1726416780825,1.5,2403.6,2403.5,2.33520883]
[1726416781026,1.5,2403.6,2403.5,3.96910817]
[1726416781224,1.5,2403.6,2403.5,2.33520883]
[1726416781724,1.5,2403.6,2403.4,2.04985934]
[1726416781929,0.3911,2403.5,2403.4,2.04985934]
[1726416782127,0.3911,2403.5,2403.4,3.68776971]
[1726416785234,0.3911,2403.5,2403.4,3.27180971]
[1726416785424,0.3911,2403.5,2403.3,4.84169934]
[1726416785628,1.9158,2403.4,2403.3,4.84169934]
[1726416785822,1.9158,2403.4,2403.3,3.27182045]
[1726416786022,1.9158,2403.4,2403.2,1.63389934]
[1726416786023,6.0766,2403.4,2403.2,1.63389934]
[1726416786221,0.41599,2403.3,2403.1,1.63389934]
[1726416786431,1.9074,2403.2,2403.0,1.63389934]
[1726416786633,1.2059,2403.2,2403.1,1.63812484]
[1726416786820,0.7899,2403.2,2402.9,1.63389934]
[1726416787029,0.41602,2403.1,2402.9,1.63389934]
[1726416787232,1.5,2403.0,2402.8,1.63389934]
[1726416787428,1.5,2402.9,2402.8,1.63389934]
[1726416787630,1.5,2402.9,2402.8,3.27213812]
[1726416787827,1.5,2402.9,2402.8,1.63823878]
[1726416788040,1.5,2402.9,2402.8,3.2715661]
[1726416788722,1.5,2402.9,2402.8,1.63823878]
[1726416788921,1.8825,2402.9,2402.8,1.63823878]
[1726416789538,1.8825,2402.9,2402.6,2.42512732]
[1726416789835,0.3825,2402.9,2402.7,1.63828029]
[1726416790037,0.3825,2402.9,2402.6,2.42512732]
[1726416790241,0.3825,2402.9,2402.7,1.63827625]
[1726416790538,0.3825,2402.9,2402.6,2.01532732]
[1726416790539,0.79856,2402.9,2402.6,2.01532732]
[1726416790740,0.4027,2402.8,2402.6,1.63332732]
[1726416791639,1.5,2402.7,2402.5,1.63332732]
[1726416791937,1.5,2402.6,2402.5,1.63332732]
[1726416792241,1.8778,2402.6,2402.5,3.2714399]
[1726416794226,1.8778,2402.6,2402.5,4.84591258]
[1726416794434,1.8778,2402.6,2402.5,6.4792399]
[1726416794737,1.8778,2402.6,2402.5,4.84591258]
[1726416796534,1.8778,2402.6,2402.5,3.2078]
[1726416797539,1.8778,2402.6,2402.4,2.84476732]
[1726416797728,1.8778,2402.6,2402.5,3.2078]
[1726416801241,1.8778,2402.6,2402.5,3.62392]
[1726416801441,1.8778,2402.6,2402.5,3.2078]
[1726416801839,12.0402,2402.6,2402.2,2.02892732]
[1726416802039,12.0402,2402.6,2402.2,0.3956]
[1726416802040,1.5,2402.3,2402.2,0.3956]
[1726416802440,1.9118,2402.3,2402.2,0.3956]
[1726416802938,1.9118,2402.3,2402.0,4.84112732]
[1726416803241,1.9118,2402.3,2401.6,1.63332732]
[1726416803242,4.1632,2402.2,2401.6,1.63332732]
[1726416803450,0.82796,2402.3,2401.8,0.81613]
[1726416803643,1.5,2401.9,2401.8,0.81614]
[1726416805448,1.5,2401.9,2401.8,0.3999]
[1726416807247,1.5,2401.9,2401.8,3.6077]
[1726416808550,1.5,2401.9,2401.8,4.02395]
[1726416811362,0.45889979,2401.9,2401.8,4.02395]
[1726416812364,1.5,2402.0,2401.9,0.41623]
[1726416813159,1.5,2402.0,2401.9,3.62403]
[1726416815367,0.097,2402.5,2402.3,0.41616]
[1726416815567,1.5,2402.5,2402.4,1.2198]
[1726416816257,1.91612,2402.5,2402.4,0.8051]
[1726416816870,1.5,2402.5,2402.4,0.8051]
[1726416817773,1.5,2402.5,2402.3,3.2078]
[1726416817971,0.3839,2402.5,2402.3,3.2078]
[1726416818271,0.404,2402.6,2402.3,3.2078]
[1726416818272,1.5,2402.4,2402.3,3.2078]
[1726416818467,1.5,2402.4,2402.3,3.62396]
[1726416818858,0.404,2402.6,2402.4,0.41613]
[1726416819062,0.404,2402.6,2402.5,0.3922]
[1726416819268,1.904,2402.6,2402.5,0.3922]
[1726416819862,1.904,2402.6,2402.5,0.7876]
[1726416822877,1.904,2402.6,2402.5,1.20372]
[1726416823275,1.904,2402.6,2402.5,0.7876]
[1726416826973,1.904,2402.6,2402.5,0.3954]
[1726416827569,1.904,2402.6,2402.3,4.04095]
[1726416827868,1.5,2402.4,2402.3,3.6248]
[1726416828174,0.87545622,2402.4,2402.3,3.6248]
[1726416828765,0.87545622,2402.4,2402.1,2.04950732]
[1726416828766,1.29160622,2402.4,2402.1,1.08596333]
[1726416829072,1.5,2402.2,2402.1,1.08596333]
[1726416829676,1.5,2402.2,2402.1,1.50215333]
[1726416829873,1.5,2402.2,2402.1,1.08596333]
[1726416830479,1.5,2402.2,2402.1,2.71391872]
[1726416831279,1.5,2402.2,2402.1,3.26128271]
[1726416832985,0.4077,2402.3,2402.1,4.22730124]
[1726416833279,1.9077,2402.3,2402.2,3.26187746]
[1726416834585,1.9077,2402.3,2402.2,2.01675539]
[1726416835084,0.4077,2402.3,2402.2,4.06747009]
[1726416835279,1.5,2402.4,2402.3,0.41616]
[1726416835583,0.3924,2402.5,2402.3,7.71813964]
[1726416835786,0.3924,2402.5,2402.4,1.08985024]
[1726416836376,0.3924,2402.5,2402.4,3.26510634]
[1726416837978,0.3924,2402.5,2402.4,1.63032751]
[1726416838378,0.80852,2402.5,2402.4,3.26510634]
[1726416838579,4.97092,2402.5,2402.4,1.09021131]
[1726416838875,4.97092,2402.5,2402.3,1.09021131]
[1726416839080,1.5,2402.4,2402.3,1.09021131]
[1726416839279,1.5,2402.4,2402.3,1.63062826]
[1726416839584,1.5,2402.4,2402.3,1.63068565]
[1726416840082,1.5,2402.4,2402.3,1.63068307]
[1726416840386,1.5,2402.4,2402.3,3.2654619]
[1726416840588,0.41618,2402.2,2402.1,1.08245807]
[1726416840883,0.41619,2402.1,2402.0,1.08245807]
[1726416841079,0.83349,2402.1,2401.8,1.63477883]
[1726416841286,0.41623,2401.9,2401.8,1.63477883]
[1726416841492,0.41625,2401.8,2401.7,1.63477883]
[1726416841680,1.91625,2401.8,2401.7,1.63477883]
[1726416842079,6.08025,2401.8,2401.7,1.63477883]
[1726416842388,6.08025,2401.8,2401.6,1.63477883]
[1726416842389,0.41626,2401.7,2401.6,1.63477883]
[1726416842589,2.33356,2401.7,2401.6,1.63477883]
[1726416844583,0.41628,2401.6,2401.5,1.63477883]
[1726416844981,10.58028,2401.6,2401.5,1.63477883]
[1726416845183,10.58028,2401.6,2401.3,1.63477883]
[1726416845184,10.164,2401.6,2401.3,1.63477883]